{"text_format":"3","workbook":"xlsx","n_sheets":5,"sheets":["Faktura","Zákazníci","Faktury – hlavní","Podrobnosti faktur","O šabloně pro sledování faktur"],"not_rendered":{"defined_names":8},"read":"whole","date_system":"1900"}

{"sheet":"Faktura","index":0,"n_rows":39,"n_cols":7,"rows_kept":39,"merged":[[1,1,1,2],[1,3,1,4],[1,5,1,6],[2,1,2,2],[2,3,2,4],[2,5,2,6],[3,3,3,4],[4,3,4,4],[5,3,5,4],[37,1,37,4],[38,1,38,4]]}
[null,"Název společnosti"]
[null,"Ulice a číslo domu",null,"T: Telefonní číslo",null,"E-mail"]
[null,"PSČ Město",null,"F: Faxové číslo",null,"Web"]
[null,"Příjemce faktury:",{"$f":"IFERROR(VLOOKUP(VLOOKUP(rngInvoice,FakturyHlavní[],2,FALSE),SeznamZákazníků[],3,TRUE),\"\")","v":"Contoso, s.r.o."},{"$f":"\"Telefon: \"&IFERROR(VLOOKUP(VLOOKUP(rngInvoice,FakturyHlavní[],2,FALSE),SeznamZákazníků[],9,FALSE),\"\")","v":"Telefon: 377564111"},null,"Faktura č.:","3-456-2"]
[null,"Adresa:",{"$f":"IFERROR(IF((VLOOKUP(VLOOKUP(rngInvoice,FakturyHlavní[],2,FALSE),SeznamZákazníků[],5,FALSE))=\"\",\"\",(VLOOKUP(VLOOKUP(rngInvoice,FakturyHlavní[],2,FALSE),SeznamZákazníků[],5,FALSE))),\"\")","v":"Ocelářská 567"},{"$f":"\"Fax:     \"&IFERROR(VLOOKUP(VLOOKUP(rngInvoice,FakturyHlavní[],2,FALSE),SeznamZákazníků[],11,FALSE),\"\")","v":"Fax:     377564112"},null,"Datum vystavení:",{"$f":"IFERROR(IF(VLOOKUP(rngInvoice,FakturyHlavní[],3,FALSE)=\"\",\"\",VLOOKUP(rngInvoice,FakturyHlavní[],3,FALSE)),\"\")","v":"2019-08-11"}]
[null,null,{"$f":"IFERROR(VLOOKUP(VLOOKUP(rngInvoice,FakturyHlavní[],2,FALSE),SeznamZákazníků[],6,FALSE)&\", \"& VLOOKUP(VLOOKUP(G4,FakturyHlavní[],2,FALSE),SeznamZákazníků[],7,FALSE)&\" \"&VLOOKUP(VLOOKUP(G4,FakturyHlavní[],2,FALSE),SeznamZákazníků[],8,FALSE),\"\")","v":"Plzeň, Česká republika 098765"},{"$f":"\"E-mail: \"&IFERROR(VLOOKUP(VLOOKUP(rngInvoice,FakturyHlavní[],2,FALSE),SeznamZákazníků[],10,FALSE),\"\")","v":"E-mail: adresa@priklad.com"}]
[null,{"$f":"\"Předmět fakturace: \"&IFERROR(VLOOKUP(rngInvoice,FakturyHlavní[],4),\"\")","v":"Předmět fakturace: Projekt 2"}]
[null,"Č. položky","Popis","Množ.","Jednotková cena","Sleva","Cena"]
[null,{"$f":"IFERROR(INDEX(PodrobnostiFaktur[],SMALL(IF(PodrobnostiFaktur[Faktura č.]=rngInvoice,ROW(PodrobnostiFaktur[])-ROW(PodrobnostiFaktur[#Headers])), ROW(1:1)), MATCH($B$8, PodrobnostiFaktur[#Headers], 0)),\"\")","v":"Z4567"},{"$f":"IFERROR(INDEX(PodrobnostiFaktur[],SMALL(IF(PodrobnostiFaktur[Faktura č.]=rngInvoice,ROW(PodrobnostiFaktur[])-ROW(PodrobnostiFaktur[#Headers])), ROW(1:1)), MATCH($C$8, PodrobnostiFaktur[#Headers], 0)),\"\")","v":"Faktura 3-456-2 data 1"},{"$f":"IFERROR(INDEX(PodrobnostiFaktur[],SMALL(IF(PodrobnostiFaktur[Faktura č.]=rngInvoice,ROW(PodrobnostiFaktur[])-ROW(PodrobnostiFaktur[#Headers])), ROW(1:1)), MATCH($D$8, PodrobnostiFaktur[#Headers], 0)),\"\")","v":39},{"$f":"IFERROR(INDEX(PodrobnostiFaktur[],SMALL(IF(PodrobnostiFaktur[Faktura č.]=rngInvoice,ROW(PodrobnostiFaktur[])-ROW(PodrobnostiFaktur[#Headers])), ROW(1:1)), MATCH($E$8, PodrobnostiFaktur[#Headers], 0)),\"\")","v":{"v":5,"d":"5.00 Kč"}},{"$f":"IFERROR(INDEX(PodrobnostiFaktur[],SMALL(IF(PodrobnostiFaktur[Faktura č.]=rngInvoice,ROW(PodrobnostiFaktur[])-ROW(PodrobnostiFaktur[#Headers])), ROW(1:1)), MATCH($F$8, PodrobnostiFaktur[#Headers], 0)),\"\")","v":0},{"$f":"IFERROR((D9*E9)-F9,\"\")","v":{"v":195,"d":"195.00 Kč"}}]
[null,{"$f":"IFERROR(INDEX(PodrobnostiFaktur[],SMALL(IF(PodrobnostiFaktur[Faktura č.]=rngInvoice,ROW(PodrobnostiFaktur[])-ROW(PodrobnostiFaktur[#Headers])), ROW(2:2)), MATCH($B$8, PodrobnostiFaktur[#Headers], 0)),\"\")","v":"Z4568"},{"$f":"IFERROR(INDEX(PodrobnostiFaktur[],SMALL(IF(PodrobnostiFaktur[Faktura č.]=rngInvoice,ROW(PodrobnostiFaktur[])-ROW(PodrobnostiFaktur[#Headers])), ROW(2:2)), MATCH($C$8, PodrobnostiFaktur[#Headers], 0)),\"\")","v":"Faktura 3-456-2 data 2"},{"$f":"IFERROR(INDEX(PodrobnostiFaktur[],SMALL(IF(PodrobnostiFaktur[Faktura č.]=rngInvoice,ROW(PodrobnostiFaktur[])-ROW(PodrobnostiFaktur[#Headers])), ROW(2:2)), MATCH($D$8, PodrobnostiFaktur[#Headers], 0)),\"\")","v":40},{"$f":"IFERROR(INDEX(PodrobnostiFaktur[],SMALL(IF(PodrobnostiFaktur[Faktura č.]=rngInvoice,ROW(PodrobnostiFaktur[])-ROW(PodrobnostiFaktur[#Headers])), ROW(2:2)), MATCH($E$8, PodrobnostiFaktur[#Headers], 0)),\"\")","v":{"v":4,"d":"4.00 Kč"}},{"$f":"IFERROR(INDEX(PodrobnostiFaktur[],SMALL(IF(PodrobnostiFaktur[Faktura č.]=rngInvoice,ROW(PodrobnostiFaktur[])-ROW(PodrobnostiFaktur[#Headers])), ROW(2:2)), MATCH($F$8, PodrobnostiFaktur[#Headers], 0)),\"\")","v":{"v":5,"d":"5.00 Kč"}},{"v":155,"d":"155.00 Kč"}]
[null,{"$f":"IFERROR(INDEX(PodrobnostiFaktur[],SMALL(IF(PodrobnostiFaktur[Faktura č.]=rngInvoice,ROW(PodrobnostiFaktur[])-ROW(PodrobnostiFaktur[#Headers])), ROW(3:3)), MATCH($B$8, PodrobnostiFaktur[#Headers], 0)),\"\")","v":"Z4569"},{"$f":"IFERROR(INDEX(PodrobnostiFaktur[],SMALL(IF(PodrobnostiFaktur[Faktura č.]=rngInvoice,ROW(PodrobnostiFaktur[])-ROW(PodrobnostiFaktur[#Headers])), ROW(3:3)), MATCH($C$8, PodrobnostiFaktur[#Headers], 0)),\"\")","v":"Faktura 3-456-2 data 3"},{"$f":"IFERROR(INDEX(PodrobnostiFaktur[],SMALL(IF(PodrobnostiFaktur[Faktura č.]=rngInvoice,ROW(PodrobnostiFaktur[])-ROW(PodrobnostiFaktur[#Headers])), ROW(3:3)), MATCH($D$8, PodrobnostiFaktur[#Headers], 0)),\"\")","v":30},{"$f":"IFERROR(INDEX(PodrobnostiFaktur[],SMALL(IF(PodrobnostiFaktur[Faktura č.]=rngInvoice,ROW(PodrobnostiFaktur[])-ROW(PodrobnostiFaktur[#Headers])), ROW(3:3)), MATCH($E$8, PodrobnostiFaktur[#Headers], 0)),\"\")","v":{"v":6,"d":"6.00 Kč"}},{"$f":"IFERROR(INDEX(PodrobnostiFaktur[],SMALL(IF(PodrobnostiFaktur[Faktura č.]=rngInvoice,ROW(PodrobnostiFaktur[])-ROW(PodrobnostiFaktur[#Headers])), ROW(3:3)), MATCH($F$8, PodrobnostiFaktur[#Headers], 0)),\"\")","v":{"v":7,"d":"7.00 Kč"}},{"v":173,"d":"173.00 Kč"}]
[null,{"$f":"IFERROR(INDEX(PodrobnostiFaktur[],SMALL(IF(PodrobnostiFaktur[Faktura č.]=rngInvoice,ROW(PodrobnostiFaktur[])-ROW(PodrobnostiFaktur[#Headers])), ROW(4:4)), MATCH($B$8, PodrobnostiFaktur[#Headers], 0)),\"\")","v":"Z4570"},{"$f":"IFERROR(INDEX(PodrobnostiFaktur[],SMALL(IF(PodrobnostiFaktur[Faktura č.]=rngInvoice,ROW(PodrobnostiFaktur[])-ROW(PodrobnostiFaktur[#Headers])), ROW(4:4)), MATCH($C$8, PodrobnostiFaktur[#Headers], 0)),\"\")","v":"Faktura 3-456-2 data 4"},{"$f":"IFERROR(INDEX(PodrobnostiFaktur[],SMALL(IF(PodrobnostiFaktur[Faktura č.]=rngInvoice,ROW(PodrobnostiFaktur[])-ROW(PodrobnostiFaktur[#Headers])), ROW(4:4)), MATCH($D$8, PodrobnostiFaktur[#Headers], 0)),\"\")","v":40},{"$f":"IFERROR(INDEX(PodrobnostiFaktur[],SMALL(IF(PodrobnostiFaktur[Faktura č.]=rngInvoice,ROW(PodrobnostiFaktur[])-ROW(PodrobnostiFaktur[#Headers])), ROW(4:4)), MATCH($E$8, PodrobnostiFaktur[#Headers], 0)),\"\")","v":{"v":7,"d":"7.00 Kč"}},{"$f":"IFERROR(INDEX(PodrobnostiFaktur[],SMALL(IF(PodrobnostiFaktur[Faktura č.]=rngInvoice,ROW(PodrobnostiFaktur[])-ROW(PodrobnostiFaktur[#Headers])), ROW(4:4)), MATCH($F$8, PodrobnostiFaktur[#Headers], 0)),\"\")","v":0},{"v":280,"d":"280.00 Kč"}]
[null,{"$f":"IFERROR(INDEX(PodrobnostiFaktur[],SMALL(IF(PodrobnostiFaktur[Faktura č.]=rngInvoice,ROW(PodrobnostiFaktur[])-ROW(PodrobnostiFaktur[#Headers])), ROW(5:5)), MATCH($B$8, PodrobnostiFaktur[#Headers], 0)),\"\")","v":"Z4571"},{"$f":"IFERROR(INDEX(PodrobnostiFaktur[],SMALL(IF(PodrobnostiFaktur[Faktura č.]=rngInvoice,ROW(PodrobnostiFaktur[])-ROW(PodrobnostiFaktur[#Headers])), ROW(5:5)), MATCH($C$8, PodrobnostiFaktur[#Headers], 0)),\"\")","v":"Faktura 3-456-2 data 5"},{"$f":"IFERROR(INDEX(PodrobnostiFaktur[],SMALL(IF(PodrobnostiFaktur[Faktura č.]=rngInvoice,ROW(PodrobnostiFaktur[])-ROW(PodrobnostiFaktur[#Headers])), ROW(5:5)), MATCH($D$8, PodrobnostiFaktur[#Headers], 0)),\"\")","v":10},{"$f":"IFERROR(INDEX(PodrobnostiFaktur[],SMALL(IF(PodrobnostiFaktur[Faktura č.]=rngInvoice,ROW(PodrobnostiFaktur[])-ROW(PodrobnostiFaktur[#Headers])), ROW(5:5)), MATCH($E$8, PodrobnostiFaktur[#Headers], 0)),\"\")","v":{"v":4,"d":"4.00 Kč"}},{"$f":"IFERROR(INDEX(PodrobnostiFaktur[],SMALL(IF(PodrobnostiFaktur[Faktura č.]=rngInvoice,ROW(PodrobnostiFaktur[])-ROW(PodrobnostiFaktur[#Headers])), ROW(5:5)), MATCH($F$8, PodrobnostiFaktur[#Headers], 0)),\"\")","v":0},{"v":40,"d":"40.00 Kč"}]
[null,{"$f":"IFERROR(INDEX(PodrobnostiFaktur[],SMALL(IF(PodrobnostiFaktur[Faktura č.]=rngInvoice,ROW(PodrobnostiFaktur[])-ROW(PodrobnostiFaktur[#Headers])), ROW(6:6)), MATCH($B$8, PodrobnostiFaktur[#Headers], 0)),\"\")","v":"Z4572"},{"$f":"IFERROR(INDEX(PodrobnostiFaktur[],SMALL(IF(PodrobnostiFaktur[Faktura č.]=rngInvoice,ROW(PodrobnostiFaktur[])-ROW(PodrobnostiFaktur[#Headers])), ROW(6:6)), MATCH($C$8, PodrobnostiFaktur[#Headers], 0)),\"\")","v":"Faktura 3-456-2 data 6"},{"$f":"IFERROR(INDEX(PodrobnostiFaktur[],SMALL(IF(PodrobnostiFaktur[Faktura č.]=rngInvoice,ROW(PodrobnostiFaktur[])-ROW(PodrobnostiFaktur[#Headers])), ROW(6:6)), MATCH($D$8, PodrobnostiFaktur[#Headers], 0)),\"\")","v":5},{"$f":"IFERROR(INDEX(PodrobnostiFaktur[],SMALL(IF(PodrobnostiFaktur[Faktura č.]=rngInvoice,ROW(PodrobnostiFaktur[])-ROW(PodrobnostiFaktur[#Headers])), ROW(6:6)), MATCH($E$8, PodrobnostiFaktur[#Headers], 0)),\"\")","v":{"v":8,"d":"8.00 Kč"}},{"$f":"IFERROR(INDEX(PodrobnostiFaktur[],SMALL(IF(PodrobnostiFaktur[Faktura č.]=rngInvoice,ROW(PodrobnostiFaktur[])-ROW(PodrobnostiFaktur[#Headers])), ROW(6:6)), MATCH($F$8, PodrobnostiFaktur[#Headers], 0)),\"\")","v":0},{"v":40,"d":"40.00 Kč"}]
[null,{"$f":"IFERROR(INDEX(PodrobnostiFaktur[],SMALL(IF(PodrobnostiFaktur[Faktura č.]=rngInvoice,ROW(PodrobnostiFaktur[])-ROW(PodrobnostiFaktur[#Headers])), ROW(7:7)), MATCH($B$8, PodrobnostiFaktur[#Headers], 0)),\"\")","v":"Z4573"},{"$f":"IFERROR(INDEX(PodrobnostiFaktur[],SMALL(IF(PodrobnostiFaktur[Faktura č.]=rngInvoice,ROW(PodrobnostiFaktur[])-ROW(PodrobnostiFaktur[#Headers])), ROW(7:7)), MATCH($C$8, PodrobnostiFaktur[#Headers], 0)),\"\")","v":"Faktura 3-456-2 data 7"},{"$f":"IFERROR(INDEX(PodrobnostiFaktur[],SMALL(IF(PodrobnostiFaktur[Faktura č.]=rngInvoice,ROW(PodrobnostiFaktur[])-ROW(PodrobnostiFaktur[#Headers])), ROW(7:7)), MATCH($D$8, PodrobnostiFaktur[#Headers], 0)),\"\")","v":70},{"$f":"IFERROR(INDEX(PodrobnostiFaktur[],SMALL(IF(PodrobnostiFaktur[Faktura č.]=rngInvoice,ROW(PodrobnostiFaktur[])-ROW(PodrobnostiFaktur[#Headers])), ROW(7:7)), MATCH($E$8, PodrobnostiFaktur[#Headers], 0)),\"\")","v":{"v":6,"d":"6.00 Kč"}},{"$f":"IFERROR(INDEX(PodrobnostiFaktur[],SMALL(IF(PodrobnostiFaktur[Faktura č.]=rngInvoice,ROW(PodrobnostiFaktur[])-ROW(PodrobnostiFaktur[#Headers])), ROW(7:7)), MATCH($F$8, PodrobnostiFaktur[#Headers], 0)),\"\")","v":0},{"v":420,"d":"420.00 Kč"}]
[null,{"$f":"IFERROR(INDEX(PodrobnostiFaktur[],SMALL(IF(PodrobnostiFaktur[Faktura č.]=rngInvoice,ROW(PodrobnostiFaktur[])-ROW(PodrobnostiFaktur[#Headers])), ROW(8:8)), MATCH($B$8, PodrobnostiFaktur[#Headers], 0)),\"\")","v":"Z4574"},{"$f":"IFERROR(INDEX(PodrobnostiFaktur[],SMALL(IF(PodrobnostiFaktur[Faktura č.]=rngInvoice,ROW(PodrobnostiFaktur[])-ROW(PodrobnostiFaktur[#Headers])), ROW(8:8)), MATCH($C$8, PodrobnostiFaktur[#Headers], 0)),\"\")","v":"Faktura 3-456-2 data 8"},{"$f":"IFERROR(INDEX(PodrobnostiFaktur[],SMALL(IF(PodrobnostiFaktur[Faktura č.]=rngInvoice,ROW(PodrobnostiFaktur[])-ROW(PodrobnostiFaktur[#Headers])), ROW(8:8)), MATCH($D$8, PodrobnostiFaktur[#Headers], 0)),\"\")","v":25},{"$f":"IFERROR(INDEX(PodrobnostiFaktur[],SMALL(IF(PodrobnostiFaktur[Faktura č.]=rngInvoice,ROW(PodrobnostiFaktur[])-ROW(PodrobnostiFaktur[#Headers])), ROW(8:8)), MATCH($E$8, PodrobnostiFaktur[#Headers], 0)),\"\")","v":{"v":4,"d":"4.00 Kč"}},{"$f":"IFERROR(INDEX(PodrobnostiFaktur[],SMALL(IF(PodrobnostiFaktur[Faktura č.]=rngInvoice,ROW(PodrobnostiFaktur[])-ROW(PodrobnostiFaktur[#Headers])), ROW(8:8)), MATCH($F$8, PodrobnostiFaktur[#Headers], 0)),\"\")","v":0},{"v":100,"d":"100.00 Kč"}]
[null,{"$f":"IFERROR(INDEX(PodrobnostiFaktur[],SMALL(IF(PodrobnostiFaktur[Faktura č.]=rngInvoice,ROW(PodrobnostiFaktur[])-ROW(PodrobnostiFaktur[#Headers])), ROW(9:9)), MATCH($B$8, PodrobnostiFaktur[#Headers], 0)),\"\")","v":"Z4575"},{"$f":"IFERROR(INDEX(PodrobnostiFaktur[],SMALL(IF(PodrobnostiFaktur[Faktura č.]=rngInvoice,ROW(PodrobnostiFaktur[])-ROW(PodrobnostiFaktur[#Headers])), ROW(9:9)), MATCH($C$8, PodrobnostiFaktur[#Headers], 0)),\"\")","v":"Faktura 3-456-2 data 9"},{"$f":"IFERROR(INDEX(PodrobnostiFaktur[],SMALL(IF(PodrobnostiFaktur[Faktura č.]=rngInvoice,ROW(PodrobnostiFaktur[])-ROW(PodrobnostiFaktur[#Headers])), ROW(9:9)), MATCH($D$8, PodrobnostiFaktur[#Headers], 0)),\"\")","v":5},{"$f":"IFERROR(INDEX(PodrobnostiFaktur[],SMALL(IF(PodrobnostiFaktur[Faktura č.]=rngInvoice,ROW(PodrobnostiFaktur[])-ROW(PodrobnostiFaktur[#Headers])), ROW(9:9)), MATCH($E$8, PodrobnostiFaktur[#Headers], 0)),\"\")","v":{"v":7,"d":"7.00 Kč"}},{"$f":"IFERROR(INDEX(PodrobnostiFaktur[],SMALL(IF(PodrobnostiFaktur[Faktura č.]=rngInvoice,ROW(PodrobnostiFaktur[])-ROW(PodrobnostiFaktur[#Headers])), ROW(9:9)), MATCH($F$8, PodrobnostiFaktur[#Headers], 0)),\"\")","v":{"v":3,"d":"3.00 Kč"}},{"v":32,"d":"32.00 Kč"}]
[null,{"$f":"IFERROR(INDEX(PodrobnostiFaktur[],SMALL(IF(PodrobnostiFaktur[Faktura č.]=rngInvoice,ROW(PodrobnostiFaktur[])-ROW(PodrobnostiFaktur[#Headers])), ROW(10:10)), MATCH($B$8, PodrobnostiFaktur[#Headers], 0)),\"\")","v":"Z4576"},{"$f":"IFERROR(INDEX(PodrobnostiFaktur[],SMALL(IF(PodrobnostiFaktur[Faktura č.]=rngInvoice,ROW(PodrobnostiFaktur[])-ROW(PodrobnostiFaktur[#Headers])), ROW(10:10)), MATCH($C$8, PodrobnostiFaktur[#Headers], 0)),\"\")","v":"Faktura 3-456-2 data 10"},{"$f":"IFERROR(INDEX(PodrobnostiFaktur[],SMALL(IF(PodrobnostiFaktur[Faktura č.]=rngInvoice,ROW(PodrobnostiFaktur[])-ROW(PodrobnostiFaktur[#Headers])), ROW(10:10)), MATCH($D$8, PodrobnostiFaktur[#Headers], 0)),\"\")","v":80},{"$f":"IFERROR(INDEX(PodrobnostiFaktur[],SMALL(IF(PodrobnostiFaktur[Faktura č.]=rngInvoice,ROW(PodrobnostiFaktur[])-ROW(PodrobnostiFaktur[#Headers])), ROW(10:10)), MATCH($E$8, PodrobnostiFaktur[#Headers], 0)),\"\")","v":{"v":1,"d":"1.00 Kč"}},{"$f":"IFERROR(INDEX(PodrobnostiFaktur[],SMALL(IF(PodrobnostiFaktur[Faktura č.]=rngInvoice,ROW(PodrobnostiFaktur[])-ROW(PodrobnostiFaktur[#Headers])), ROW(10:10)), MATCH($F$8, PodrobnostiFaktur[#Headers], 0)),\"\")","v":0},{"v":80,"d":"80.00 Kč"}]
[null,{"$f":"IFERROR(INDEX(PodrobnostiFaktur[],SMALL(IF(PodrobnostiFaktur[Faktura č.]=rngInvoice,ROW(PodrobnostiFaktur[])-ROW(PodrobnostiFaktur[#Headers])), ROW(11:11)), MATCH($B$8, PodrobnostiFaktur[#Headers], 0)),\"\")","v":"Z4577"},{"$f":"IFERROR(INDEX(PodrobnostiFaktur[],SMALL(IF(PodrobnostiFaktur[Faktura č.]=rngInvoice,ROW(PodrobnostiFaktur[])-ROW(PodrobnostiFaktur[#Headers])), ROW(11:11)), MATCH($C$8, PodrobnostiFaktur[#Headers], 0)),\"\")","v":"Faktura 3-456-2 data 11"},{"$f":"IFERROR(INDEX(PodrobnostiFaktur[],SMALL(IF(PodrobnostiFaktur[Faktura č.]=rngInvoice,ROW(PodrobnostiFaktur[])-ROW(PodrobnostiFaktur[#Headers])), ROW(11:11)), MATCH($D$8, PodrobnostiFaktur[#Headers], 0)),\"\")","v":65},{"$f":"IFERROR(INDEX(PodrobnostiFaktur[],SMALL(IF(PodrobnostiFaktur[Faktura č.]=rngInvoice,ROW(PodrobnostiFaktur[])-ROW(PodrobnostiFaktur[#Headers])), ROW(11:11)), MATCH($E$8, PodrobnostiFaktur[#Headers], 0)),\"\")","v":{"v":7,"d":"7.00 Kč"}},{"$f":"IFERROR(INDEX(PodrobnostiFaktur[],SMALL(IF(PodrobnostiFaktur[Faktura č.]=rngInvoice,ROW(PodrobnostiFaktur[])-ROW(PodrobnostiFaktur[#Headers])), ROW(11:11)), MATCH($F$8, PodrobnostiFaktur[#Headers], 0)),\"\")","v":0},{"v":455,"d":"455.00 Kč"}]
[null,{"$f":"IFERROR(INDEX(PodrobnostiFaktur[],SMALL(IF(PodrobnostiFaktur[Faktura č.]=rngInvoice,ROW(PodrobnostiFaktur[])-ROW(PodrobnostiFaktur[#Headers])), ROW(12:12)), MATCH($B$8, PodrobnostiFaktur[#Headers], 0)),\"\")","v":"Z4578"},{"$f":"IFERROR(INDEX(PodrobnostiFaktur[],SMALL(IF(PodrobnostiFaktur[Faktura č.]=rngInvoice,ROW(PodrobnostiFaktur[])-ROW(PodrobnostiFaktur[#Headers])), ROW(12:12)), MATCH($C$8, PodrobnostiFaktur[#Headers], 0)),\"\")","v":"Faktura 3-456-2 data 12"},{"$f":"IFERROR(INDEX(PodrobnostiFaktur[],SMALL(IF(PodrobnostiFaktur[Faktura č.]=rngInvoice,ROW(PodrobnostiFaktur[])-ROW(PodrobnostiFaktur[#Headers])), ROW(12:12)), MATCH($D$8, PodrobnostiFaktur[#Headers], 0)),\"\")","v":44},{"$f":"IFERROR(INDEX(PodrobnostiFaktur[],SMALL(IF(PodrobnostiFaktur[Faktura č.]=rngInvoice,ROW(PodrobnostiFaktur[])-ROW(PodrobnostiFaktur[#Headers])), ROW(12:12)), MATCH($E$8, PodrobnostiFaktur[#Headers], 0)),\"\")","v":{"v":1,"d":"1.00 Kč"}},{"$f":"IFERROR(INDEX(PodrobnostiFaktur[],SMALL(IF(PodrobnostiFaktur[Faktura č.]=rngInvoice,ROW(PodrobnostiFaktur[])-ROW(PodrobnostiFaktur[#Headers])), ROW(12:12)), MATCH($F$8, PodrobnostiFaktur[#Headers], 0)),\"\")","v":0},{"v":44,"d":"44.00 Kč"}]
[null,{"$f":"IFERROR(INDEX(PodrobnostiFaktur[],SMALL(IF(PodrobnostiFaktur[Faktura č.]=rngInvoice,ROW(PodrobnostiFaktur[])-ROW(PodrobnostiFaktur[#Headers])), ROW(13:13)), MATCH($B$8, PodrobnostiFaktur[#Headers], 0)),\"\")","v":""},{"$f":"IFERROR(INDEX(PodrobnostiFaktur[],SMALL(IF(PodrobnostiFaktur[Faktura č.]=rngInvoice,ROW(PodrobnostiFaktur[])-ROW(PodrobnostiFaktur[#Headers])), ROW(13:13)), MATCH($C$8, PodrobnostiFaktur[#Headers], 0)),\"\")","v":""},{"$f":"IFERROR(INDEX(PodrobnostiFaktur[],SMALL(IF(PodrobnostiFaktur[Faktura č.]=rngInvoice,ROW(PodrobnostiFaktur[])-ROW(PodrobnostiFaktur[#Headers])), ROW(13:13)), MATCH($D$8, PodrobnostiFaktur[#Headers], 0)),\"\")","v":""},{"$f":"IFERROR(INDEX(PodrobnostiFaktur[],SMALL(IF(PodrobnostiFaktur[Faktura č.]=rngInvoice,ROW(PodrobnostiFaktur[])-ROW(PodrobnostiFaktur[#Headers])), ROW(13:13)), MATCH($E$8, PodrobnostiFaktur[#Headers], 0)),\"\")","v":""},{"$f":"IFERROR(INDEX(PodrobnostiFaktur[],SMALL(IF(PodrobnostiFaktur[Faktura č.]=rngInvoice,ROW(PodrobnostiFaktur[])-ROW(PodrobnostiFaktur[#Headers])), ROW(13:13)), MATCH($F$8, PodrobnostiFaktur[#Headers], 0)),\"\")","v":""},""]
[null,{"$f":"IFERROR(INDEX(PodrobnostiFaktur[],SMALL(IF(PodrobnostiFaktur[Faktura č.]=rngInvoice,ROW(PodrobnostiFaktur[])-ROW(PodrobnostiFaktur[#Headers])), ROW(14:14)), MATCH($B$8, PodrobnostiFaktur[#Headers], 0)),\"\")","v":""},{"$f":"IFERROR(INDEX(PodrobnostiFaktur[],SMALL(IF(PodrobnostiFaktur[Faktura č.]=rngInvoice,ROW(PodrobnostiFaktur[])-ROW(PodrobnostiFaktur[#Headers])), ROW(14:14)), MATCH($C$8, PodrobnostiFaktur[#Headers], 0)),\"\")","v":""},{"$f":"IFERROR(INDEX(PodrobnostiFaktur[],SMALL(IF(PodrobnostiFaktur[Faktura č.]=rngInvoice,ROW(PodrobnostiFaktur[])-ROW(PodrobnostiFaktur[#Headers])), ROW(14:14)), MATCH($D$8, PodrobnostiFaktur[#Headers], 0)),\"\")","v":""},{"$f":"IFERROR(INDEX(PodrobnostiFaktur[],SMALL(IF(PodrobnostiFaktur[Faktura č.]=rngInvoice,ROW(PodrobnostiFaktur[])-ROW(PodrobnostiFaktur[#Headers])), ROW(14:14)), MATCH($E$8, PodrobnostiFaktur[#Headers], 0)),\"\")","v":""},{"$f":"IFERROR(INDEX(PodrobnostiFaktur[],SMALL(IF(PodrobnostiFaktur[Faktura č.]=rngInvoice,ROW(PodrobnostiFaktur[])-ROW(PodrobnostiFaktur[#Headers])), ROW(14:14)), MATCH($F$8, PodrobnostiFaktur[#Headers], 0)),\"\")","v":""},""]
[null,{"$f":"IFERROR(INDEX(PodrobnostiFaktur[],SMALL(IF(PodrobnostiFaktur[Faktura č.]=rngInvoice,ROW(PodrobnostiFaktur[])-ROW(PodrobnostiFaktur[#Headers])), ROW(15:15)), MATCH($B$8, PodrobnostiFaktur[#Headers], 0)),\"\")","v":""},{"$f":"IFERROR(INDEX(PodrobnostiFaktur[],SMALL(IF(PodrobnostiFaktur[Faktura č.]=rngInvoice,ROW(PodrobnostiFaktur[])-ROW(PodrobnostiFaktur[#Headers])), ROW(15:15)), MATCH($C$8, PodrobnostiFaktur[#Headers], 0)),\"\")","v":""},{"$f":"IFERROR(INDEX(PodrobnostiFaktur[],SMALL(IF(PodrobnostiFaktur[Faktura č.]=rngInvoice,ROW(PodrobnostiFaktur[])-ROW(PodrobnostiFaktur[#Headers])), ROW(15:15)), MATCH($D$8, PodrobnostiFaktur[#Headers], 0)),\"\")","v":""},{"$f":"IFERROR(INDEX(PodrobnostiFaktur[],SMALL(IF(PodrobnostiFaktur[Faktura č.]=rngInvoice,ROW(PodrobnostiFaktur[])-ROW(PodrobnostiFaktur[#Headers])), ROW(15:15)), MATCH($E$8, PodrobnostiFaktur[#Headers], 0)),\"\")","v":""},{"$f":"IFERROR(INDEX(PodrobnostiFaktur[],SMALL(IF(PodrobnostiFaktur[Faktura č.]=rngInvoice,ROW(PodrobnostiFaktur[])-ROW(PodrobnostiFaktur[#Headers])), ROW(15:15)), MATCH($F$8, PodrobnostiFaktur[#Headers], 0)),\"\")","v":""},""]
[null,{"$f":"IFERROR(INDEX(PodrobnostiFaktur[],SMALL(IF(PodrobnostiFaktur[Faktura č.]=rngInvoice,ROW(PodrobnostiFaktur[])-ROW(PodrobnostiFaktur[#Headers])), ROW(16:16)), MATCH($B$8, PodrobnostiFaktur[#Headers], 0)),\"\")","v":""},{"$f":"IFERROR(INDEX(PodrobnostiFaktur[],SMALL(IF(PodrobnostiFaktur[Faktura č.]=rngInvoice,ROW(PodrobnostiFaktur[])-ROW(PodrobnostiFaktur[#Headers])), ROW(16:16)), MATCH($C$8, PodrobnostiFaktur[#Headers], 0)),\"\")","v":""},{"$f":"IFERROR(INDEX(PodrobnostiFaktur[],SMALL(IF(PodrobnostiFaktur[Faktura č.]=rngInvoice,ROW(PodrobnostiFaktur[])-ROW(PodrobnostiFaktur[#Headers])), ROW(16:16)), MATCH($D$8, PodrobnostiFaktur[#Headers], 0)),\"\")","v":""},{"$f":"IFERROR(INDEX(PodrobnostiFaktur[],SMALL(IF(PodrobnostiFaktur[Faktura č.]=rngInvoice,ROW(PodrobnostiFaktur[])-ROW(PodrobnostiFaktur[#Headers])), ROW(16:16)), MATCH($E$8, PodrobnostiFaktur[#Headers], 0)),\"\")","v":""},{"$f":"IFERROR(INDEX(PodrobnostiFaktur[],SMALL(IF(PodrobnostiFaktur[Faktura č.]=rngInvoice,ROW(PodrobnostiFaktur[])-ROW(PodrobnostiFaktur[#Headers])), ROW(16:16)), MATCH($F$8, PodrobnostiFaktur[#Headers], 0)),\"\")","v":""},""]
[null,{"$f":"IFERROR(INDEX(PodrobnostiFaktur[],SMALL(IF(PodrobnostiFaktur[Faktura č.]=rngInvoice,ROW(PodrobnostiFaktur[])-ROW(PodrobnostiFaktur[#Headers])), ROW(17:17)), MATCH($B$8, PodrobnostiFaktur[#Headers], 0)),\"\")","v":""},{"$f":"IFERROR(INDEX(PodrobnostiFaktur[],SMALL(IF(PodrobnostiFaktur[Faktura č.]=rngInvoice,ROW(PodrobnostiFaktur[])-ROW(PodrobnostiFaktur[#Headers])), ROW(17:17)), MATCH($C$8, PodrobnostiFaktur[#Headers], 0)),\"\")","v":""},{"$f":"IFERROR(INDEX(PodrobnostiFaktur[],SMALL(IF(PodrobnostiFaktur[Faktura č.]=rngInvoice,ROW(PodrobnostiFaktur[])-ROW(PodrobnostiFaktur[#Headers])), ROW(17:17)), MATCH($D$8, PodrobnostiFaktur[#Headers], 0)),\"\")","v":""},{"$f":"IFERROR(INDEX(PodrobnostiFaktur[],SMALL(IF(PodrobnostiFaktur[Faktura č.]=rngInvoice,ROW(PodrobnostiFaktur[])-ROW(PodrobnostiFaktur[#Headers])), ROW(17:17)), MATCH($E$8, PodrobnostiFaktur[#Headers], 0)),\"\")","v":""},{"$f":"IFERROR(INDEX(PodrobnostiFaktur[],SMALL(IF(PodrobnostiFaktur[Faktura č.]=rngInvoice,ROW(PodrobnostiFaktur[])-ROW(PodrobnostiFaktur[#Headers])), ROW(17:17)), MATCH($F$8, PodrobnostiFaktur[#Headers], 0)),\"\")","v":""},""]
[null,{"$f":"IFERROR(INDEX(PodrobnostiFaktur[],SMALL(IF(PodrobnostiFaktur[Faktura č.]=rngInvoice,ROW(PodrobnostiFaktur[])-ROW(PodrobnostiFaktur[#Headers])), ROW(18:18)), MATCH($B$8, PodrobnostiFaktur[#Headers], 0)),\"\")","v":""},{"$f":"IFERROR(INDEX(PodrobnostiFaktur[],SMALL(IF(PodrobnostiFaktur[Faktura č.]=rngInvoice,ROW(PodrobnostiFaktur[])-ROW(PodrobnostiFaktur[#Headers])), ROW(18:18)), MATCH($C$8, PodrobnostiFaktur[#Headers], 0)),\"\")","v":""},{"$f":"IFERROR(INDEX(PodrobnostiFaktur[],SMALL(IF(PodrobnostiFaktur[Faktura č.]=rngInvoice,ROW(PodrobnostiFaktur[])-ROW(PodrobnostiFaktur[#Headers])), ROW(18:18)), MATCH($D$8, PodrobnostiFaktur[#Headers], 0)),\"\")","v":""},{"$f":"IFERROR(INDEX(PodrobnostiFaktur[],SMALL(IF(PodrobnostiFaktur[Faktura č.]=rngInvoice,ROW(PodrobnostiFaktur[])-ROW(PodrobnostiFaktur[#Headers])), ROW(18:18)), MATCH($E$8, PodrobnostiFaktur[#Headers], 0)),\"\")","v":""},{"$f":"IFERROR(INDEX(PodrobnostiFaktur[],SMALL(IF(PodrobnostiFaktur[Faktura č.]=rngInvoice,ROW(PodrobnostiFaktur[])-ROW(PodrobnostiFaktur[#Headers])), ROW(18:18)), MATCH($F$8, PodrobnostiFaktur[#Headers], 0)),\"\")","v":""},""]
[null,{"$f":"IFERROR(INDEX(PodrobnostiFaktur[],SMALL(IF(PodrobnostiFaktur[Faktura č.]=rngInvoice,ROW(PodrobnostiFaktur[])-ROW(PodrobnostiFaktur[#Headers])), ROW(19:19)), MATCH($B$8, PodrobnostiFaktur[#Headers], 0)),\"\")","v":""},{"$f":"IFERROR(INDEX(PodrobnostiFaktur[],SMALL(IF(PodrobnostiFaktur[Faktura č.]=rngInvoice,ROW(PodrobnostiFaktur[])-ROW(PodrobnostiFaktur[#Headers])), ROW(19:19)), MATCH($C$8, PodrobnostiFaktur[#Headers], 0)),\"\")","v":""},{"$f":"IFERROR(INDEX(PodrobnostiFaktur[],SMALL(IF(PodrobnostiFaktur[Faktura č.]=rngInvoice,ROW(PodrobnostiFaktur[])-ROW(PodrobnostiFaktur[#Headers])), ROW(19:19)), MATCH($D$8, PodrobnostiFaktur[#Headers], 0)),\"\")","v":""},{"$f":"IFERROR(INDEX(PodrobnostiFaktur[],SMALL(IF(PodrobnostiFaktur[Faktura č.]=rngInvoice,ROW(PodrobnostiFaktur[])-ROW(PodrobnostiFaktur[#Headers])), ROW(19:19)), MATCH($E$8, PodrobnostiFaktur[#Headers], 0)),\"\")","v":""},{"$f":"IFERROR(INDEX(PodrobnostiFaktur[],SMALL(IF(PodrobnostiFaktur[Faktura č.]=rngInvoice,ROW(PodrobnostiFaktur[])-ROW(PodrobnostiFaktur[#Headers])), ROW(19:19)), MATCH($F$8, PodrobnostiFaktur[#Headers], 0)),\"\")","v":""},""]
[null,{"$f":"IFERROR(INDEX(PodrobnostiFaktur[],SMALL(IF(PodrobnostiFaktur[Faktura č.]=rngInvoice,ROW(PodrobnostiFaktur[])-ROW(PodrobnostiFaktur[#Headers])), ROW(20:20)), MATCH($B$8, PodrobnostiFaktur[#Headers], 0)),\"\")","v":""},{"$f":"IFERROR(INDEX(PodrobnostiFaktur[],SMALL(IF(PodrobnostiFaktur[Faktura č.]=rngInvoice,ROW(PodrobnostiFaktur[])-ROW(PodrobnostiFaktur[#Headers])), ROW(20:20)), MATCH($C$8, PodrobnostiFaktur[#Headers], 0)),\"\")","v":""},{"$f":"IFERROR(INDEX(PodrobnostiFaktur[],SMALL(IF(PodrobnostiFaktur[Faktura č.]=rngInvoice,ROW(PodrobnostiFaktur[])-ROW(PodrobnostiFaktur[#Headers])), ROW(20:20)), MATCH($D$8, PodrobnostiFaktur[#Headers], 0)),\"\")","v":""},{"$f":"IFERROR(INDEX(PodrobnostiFaktur[],SMALL(IF(PodrobnostiFaktur[Faktura č.]=rngInvoice,ROW(PodrobnostiFaktur[])-ROW(PodrobnostiFaktur[#Headers])), ROW(20:20)), MATCH($E$8, PodrobnostiFaktur[#Headers], 0)),\"\")","v":""},{"$f":"IFERROR(INDEX(PodrobnostiFaktur[],SMALL(IF(PodrobnostiFaktur[Faktura č.]=rngInvoice,ROW(PodrobnostiFaktur[])-ROW(PodrobnostiFaktur[#Headers])), ROW(20:20)), MATCH($F$8, PodrobnostiFaktur[#Headers], 0)),\"\")","v":""},""]
[null,{"$f":"IFERROR(INDEX(PodrobnostiFaktur[],SMALL(IF(PodrobnostiFaktur[Faktura č.]=rngInvoice,ROW(PodrobnostiFaktur[])-ROW(PodrobnostiFaktur[#Headers])), ROW(21:21)), MATCH($B$8, PodrobnostiFaktur[#Headers], 0)),\"\")","v":""},{"$f":"IFERROR(INDEX(PodrobnostiFaktur[],SMALL(IF(PodrobnostiFaktur[Faktura č.]=rngInvoice,ROW(PodrobnostiFaktur[])-ROW(PodrobnostiFaktur[#Headers])), ROW(21:21)), MATCH($C$8, PodrobnostiFaktur[#Headers], 0)),\"\")","v":""},{"$f":"IFERROR(INDEX(PodrobnostiFaktur[],SMALL(IF(PodrobnostiFaktur[Faktura č.]=rngInvoice,ROW(PodrobnostiFaktur[])-ROW(PodrobnostiFaktur[#Headers])), ROW(21:21)), MATCH($D$8, PodrobnostiFaktur[#Headers], 0)),\"\")","v":""},{"$f":"IFERROR(INDEX(PodrobnostiFaktur[],SMALL(IF(PodrobnostiFaktur[Faktura č.]=rngInvoice,ROW(PodrobnostiFaktur[])-ROW(PodrobnostiFaktur[#Headers])), ROW(21:21)), MATCH($E$8, PodrobnostiFaktur[#Headers], 0)),\"\")","v":""},{"$f":"IFERROR(INDEX(PodrobnostiFaktur[],SMALL(IF(PodrobnostiFaktur[Faktura č.]=rngInvoice,ROW(PodrobnostiFaktur[])-ROW(PodrobnostiFaktur[#Headers])), ROW(21:21)), MATCH($F$8, PodrobnostiFaktur[#Headers], 0)),\"\")","v":""},""]
[null,{"$f":"IFERROR(INDEX(PodrobnostiFaktur[],SMALL(IF(PodrobnostiFaktur[Faktura č.]=rngInvoice,ROW(PodrobnostiFaktur[])-ROW(PodrobnostiFaktur[#Headers])), ROW(22:22)), MATCH($B$8, PodrobnostiFaktur[#Headers], 0)),\"\")","v":""},{"$f":"IFERROR(INDEX(PodrobnostiFaktur[],SMALL(IF(PodrobnostiFaktur[Faktura č.]=rngInvoice,ROW(PodrobnostiFaktur[])-ROW(PodrobnostiFaktur[#Headers])), ROW(22:22)), MATCH($C$8, PodrobnostiFaktur[#Headers], 0)),\"\")","v":""},{"$f":"IFERROR(INDEX(PodrobnostiFaktur[],SMALL(IF(PodrobnostiFaktur[Faktura č.]=rngInvoice,ROW(PodrobnostiFaktur[])-ROW(PodrobnostiFaktur[#Headers])), ROW(22:22)), MATCH($D$8, PodrobnostiFaktur[#Headers], 0)),\"\")","v":""},{"$f":"IFERROR(INDEX(PodrobnostiFaktur[],SMALL(IF(PodrobnostiFaktur[Faktura č.]=rngInvoice,ROW(PodrobnostiFaktur[])-ROW(PodrobnostiFaktur[#Headers])), ROW(22:22)), MATCH($E$8, PodrobnostiFaktur[#Headers], 0)),\"\")","v":""},{"$f":"IFERROR(INDEX(PodrobnostiFaktur[],SMALL(IF(PodrobnostiFaktur[Faktura č.]=rngInvoice,ROW(PodrobnostiFaktur[])-ROW(PodrobnostiFaktur[#Headers])), ROW(22:22)), MATCH($F$8, PodrobnostiFaktur[#Headers], 0)),\"\")","v":""},""]
[null,{"$f":"IFERROR(INDEX(PodrobnostiFaktur[],SMALL(IF(PodrobnostiFaktur[Faktura č.]=rngInvoice,ROW(PodrobnostiFaktur[])-ROW(PodrobnostiFaktur[#Headers])), ROW(23:23)), MATCH($B$8, PodrobnostiFaktur[#Headers], 0)),\"\")","v":""},{"$f":"IFERROR(INDEX(PodrobnostiFaktur[],SMALL(IF(PodrobnostiFaktur[Faktura č.]=rngInvoice,ROW(PodrobnostiFaktur[])-ROW(PodrobnostiFaktur[#Headers])), ROW(23:23)), MATCH($C$8, PodrobnostiFaktur[#Headers], 0)),\"\")","v":""},{"$f":"IFERROR(INDEX(PodrobnostiFaktur[],SMALL(IF(PodrobnostiFaktur[Faktura č.]=rngInvoice,ROW(PodrobnostiFaktur[])-ROW(PodrobnostiFaktur[#Headers])), ROW(23:23)), MATCH($D$8, PodrobnostiFaktur[#Headers], 0)),\"\")","v":""},{"$f":"IFERROR(INDEX(PodrobnostiFaktur[],SMALL(IF(PodrobnostiFaktur[Faktura č.]=rngInvoice,ROW(PodrobnostiFaktur[])-ROW(PodrobnostiFaktur[#Headers])), ROW(23:23)), MATCH($E$8, PodrobnostiFaktur[#Headers], 0)),\"\")","v":""},{"$f":"IFERROR(INDEX(PodrobnostiFaktur[],SMALL(IF(PodrobnostiFaktur[Faktura č.]=rngInvoice,ROW(PodrobnostiFaktur[])-ROW(PodrobnostiFaktur[#Headers])), ROW(23:23)), MATCH($F$8, PodrobnostiFaktur[#Headers], 0)),\"\")","v":""},""]
[null,{"$f":"IFERROR(INDEX(PodrobnostiFaktur[],SMALL(IF(PodrobnostiFaktur[Faktura č.]=rngInvoice,ROW(PodrobnostiFaktur[])-ROW(PodrobnostiFaktur[#Headers])), ROW(24:24)), MATCH($B$8, PodrobnostiFaktur[#Headers], 0)),\"\")","v":""},{"$f":"IFERROR(INDEX(PodrobnostiFaktur[],SMALL(IF(PodrobnostiFaktur[Faktura č.]=rngInvoice,ROW(PodrobnostiFaktur[])-ROW(PodrobnostiFaktur[#Headers])), ROW(24:24)), MATCH($C$8, PodrobnostiFaktur[#Headers], 0)),\"\")","v":""},{"$f":"IFERROR(INDEX(PodrobnostiFaktur[],SMALL(IF(PodrobnostiFaktur[Faktura č.]=rngInvoice,ROW(PodrobnostiFaktur[])-ROW(PodrobnostiFaktur[#Headers])), ROW(24:24)), MATCH($D$8, PodrobnostiFaktur[#Headers], 0)),\"\")","v":""},{"$f":"IFERROR(INDEX(PodrobnostiFaktur[],SMALL(IF(PodrobnostiFaktur[Faktura č.]=rngInvoice,ROW(PodrobnostiFaktur[])-ROW(PodrobnostiFaktur[#Headers])), ROW(24:24)), MATCH($E$8, PodrobnostiFaktur[#Headers], 0)),\"\")","v":""},{"$f":"IFERROR(INDEX(PodrobnostiFaktur[],SMALL(IF(PodrobnostiFaktur[Faktura č.]=rngInvoice,ROW(PodrobnostiFaktur[])-ROW(PodrobnostiFaktur[#Headers])), ROW(24:24)), MATCH($F$8, PodrobnostiFaktur[#Headers], 0)),\"\")","v":""},""]
[null,{"$f":"IFERROR(INDEX(PodrobnostiFaktur[],SMALL(IF(PodrobnostiFaktur[Faktura č.]=rngInvoice,ROW(PodrobnostiFaktur[])-ROW(PodrobnostiFaktur[#Headers])), ROW(25:25)), MATCH($B$8, PodrobnostiFaktur[#Headers], 0)),\"\")","v":""},{"$f":"IFERROR(INDEX(PodrobnostiFaktur[],SMALL(IF(PodrobnostiFaktur[Faktura č.]=rngInvoice,ROW(PodrobnostiFaktur[])-ROW(PodrobnostiFaktur[#Headers])), ROW(25:25)), MATCH($C$8, PodrobnostiFaktur[#Headers], 0)),\"\")","v":""},{"$f":"IFERROR(INDEX(PodrobnostiFaktur[],SMALL(IF(PodrobnostiFaktur[Faktura č.]=rngInvoice,ROW(PodrobnostiFaktur[])-ROW(PodrobnostiFaktur[#Headers])), ROW(25:25)), MATCH($D$8, PodrobnostiFaktur[#Headers], 0)),\"\")","v":""},{"$f":"IFERROR(INDEX(PodrobnostiFaktur[],SMALL(IF(PodrobnostiFaktur[Faktura č.]=rngInvoice,ROW(PodrobnostiFaktur[])-ROW(PodrobnostiFaktur[#Headers])), ROW(25:25)), MATCH($E$8, PodrobnostiFaktur[#Headers], 0)),\"\")","v":""},{"$f":"IFERROR(INDEX(PodrobnostiFaktur[],SMALL(IF(PodrobnostiFaktur[Faktura č.]=rngInvoice,ROW(PodrobnostiFaktur[])-ROW(PodrobnostiFaktur[#Headers])), ROW(25:25)), MATCH($F$8, PodrobnostiFaktur[#Headers], 0)),\"\")","v":""},""]
[{"$nulls":5},"Mezisoučet faktury",{"$f":"SUM(FakturaProjektu[Cena])","v":{"v":2014,"d":"2,014.00 Kč"}}]
[{"$nulls":5},"Sazba daně",{"$f":"VLOOKUP(rngInvoice,FakturyHlavní[],5)","v":{"v":0.0875,"d":"8.75%"}}]
[{"$nulls":5},"DPH",{"$f":"G34*G35","v":{"v":176.225,"d":"176.23 Kč"}}]
[{"$nulls":5},"Ostatní",{"$f":"VLOOKUP(rngInvoice,FakturyHlavní[],6)","v":0}]
[null,{"$f":"\"Příjemce všech plateb \"&NázevSpolečnosti&\".\"","v":"Příjemce všech plateb Název společnosti."},{"$nulls":3},"Přijatá záloha",{"$f":"VLOOKUP(rngInvoice,FakturyHlavní[],7)","v":0}]
[null,"Celková částka je splatná do <#> dnů. Částka po splatnosti bude úročena sazbou <#> % měsíčně.",{"$nulls":3},"CELKEM",{"$f":"(G34+G36+G37)-G38","v":{"v":2190.225,"d":"2,190.23 Kč"}}]

{"sheet":"Zákazníci","index":1,"n_rows":6,"n_cols":12,"rows_kept":6}
[]
[null,null,"Zákazníci"]
[null,"Vyhledávání","Č. společnosti","Název společnosti","Jméno kontaktu","Adresa","Město","Stát","PSČ","Telefon","E-mail","Fax"]
[null,{"$f":"C4& \" - \"&D4","v":"1 - Tailspin Toys "},1,"Tailspin Toys ","Michal Formánek","Višňová 345","Ústí nad Labem","Česká republika","123456",411666230,"adresa@priklad.com",411666231]
[null,"2 - Contoso, s.r.o.",2,"Contoso, s.r.o.","Matěj Skořepa","Ocelářská 567","Plzeň","Česká republika","098765",377564111,"adresa@priklad.com",377564112]
[null,"Celkem",{"$f":"\"Zákazníci celkem: \"&SUBTOTAL(103,SeznamZákazníků[Č. společnosti])","v":"Zákazníci celkem: 2"}]

{"sheet":"Faktury – hlavní","index":2,"n_rows":6,"n_cols":11,"rows_kept":6}
[]
[null,"Faktury"]
[null,"Faktura č.","Společnost","Datum vystavení","Popis projektu","Sazba daně","Ostatní","Záloha","Celkový součet","Celková částka","Poznámky"]
[null,"3-456-1","1 - Tailspin Toys ",{"$f":"TODAY()","v":"2019-08-01"},"Projekt 1",{"v":0.0875,"d":"8.75%"},{"v":100,"d":"100.00 Kč"},{"v":100,"d":"100.00 Kč"},{"$f":"SUMIF(PodrobnostiFaktur[Faktura č.],\"=\"&FakturyHlavní[[#This Row],[Faktura č.]],PodrobnostiFaktur[Celkem])","v":{"v":5200,"d":"5,200.00 Kč"}},{"$f":"(FakturyHlavní[[#This Row],[Celkový součet]]*(1+FakturyHlavní[[#This Row],[Sazba daně]]))+FakturyHlavní[[#This Row],[Ostatní]]-FakturyHlavní[[#This Row],[Záloha]]","v":{"v":5654.999999999999,"d":"5,655.00 Kč"}}]
[null,"3-456-2","2 - Contoso, s.r.o.",{"$f":"TODAY()+10","v":"2019-08-11"},"Projekt 2",{"v":0.0875,"d":"8.75%"},null,null,{"$f":"SUMIF(PodrobnostiFaktur[Faktura č.],\"=\"&FakturyHlavní[[#This Row],[Faktura č.]],PodrobnostiFaktur[Celkem])","v":{"v":2014,"d":"2,014.00 Kč"}},{"$f":"(FakturyHlavní[[#This Row],[Celkový součet]]*(1+FakturyHlavní[[#This Row],[Sazba daně]]))+FakturyHlavní[[#This Row],[Ostatní]]-FakturyHlavní[[#This Row],[Záloha]]","v":{"v":2190.225,"d":"2,190.23 Kč"}}]
[null,"Celkem",{"$f":"\"Celkový počet faktur: \"&SUBTOTAL(103,FakturyHlavní[Faktura č.])","v":"Celkový počet faktur: 2"},{"$nulls":3},{"$f":"SUBTOTAL(109,FakturyHlavní[Ostatní])","v":{"v":100,"d":"100.00 Kč"}},{"$f":"SUBTOTAL(109,FakturyHlavní[Záloha])","v":{"v":100,"d":"100.00 Kč"}},{"$f":"SUBTOTAL(109,FakturyHlavní[Celkový součet])","v":{"v":7214,"d":"7,214.00 Kč"}},{"$f":"SUBTOTAL(109,FakturyHlavní[Celková částka])","v":{"v":7845.2249999999985,"d":"7,845.23 Kč"}}]

{"sheet":"Podrobnosti faktur","index":3,"n_rows":40,"n_cols":8,"rows_kept":40}
[]
[null,"Podrobnosti faktur"]
[null,"Popis","Faktura č.","Č. položky","Množ.","Jednotková cena","Sleva","Celkem"]
[null,"Faktura 3-456-1 data 1","3-456-1",1,1,{"v":1,"d":"1.00 Kč"},{"v":1,"d":"1.00 Kč"},{"$f":"(PodrobnostiFaktur[[#This Row],[Množ.]]*PodrobnostiFaktur[[#This Row],[Jednotková cena]])-PodrobnostiFaktur[[#This Row],[Sleva]]","v":{"v":0,"d":"0.00 Kč"}}]
[null,"Faktura 3-456-1 data 2","3-456-1",2,2,{"v":2,"d":"2.00 Kč"},{"v":2,"d":"2.00 Kč"},{"$f":"(PodrobnostiFaktur[[#This Row],[Množ.]]*PodrobnostiFaktur[[#This Row],[Jednotková cena]])-PodrobnostiFaktur[[#This Row],[Sleva]]","v":{"v":2,"d":"2.00 Kč"}}]
[null,"Faktura 3-456-1 data 3","3-456-1",3,3,{"v":3,"d":"3.00 Kč"},{"v":3,"d":"3.00 Kč"},{"$f":"(PodrobnostiFaktur[[#This Row],[Množ.]]*PodrobnostiFaktur[[#This Row],[Jednotková cena]])-PodrobnostiFaktur[[#This Row],[Sleva]]","v":{"v":6,"d":"6.00 Kč"}}]
[null,"Faktura 3-456-1 data 4","3-456-1",4,4,{"v":4,"d":"4.00 Kč"},{"v":4,"d":"4.00 Kč"},{"$f":"(PodrobnostiFaktur[[#This Row],[Množ.]]*PodrobnostiFaktur[[#This Row],[Jednotková cena]])-PodrobnostiFaktur[[#This Row],[Sleva]]","v":{"v":12,"d":"12.00 Kč"}}]
[null,"Faktura 3-456-1 data 5","3-456-1",5,5,{"v":5,"d":"5.00 Kč"},{"v":5,"d":"5.00 Kč"},{"$f":"(PodrobnostiFaktur[[#This Row],[Množ.]]*PodrobnostiFaktur[[#This Row],[Jednotková cena]])-PodrobnostiFaktur[[#This Row],[Sleva]]","v":{"v":20,"d":"20.00 Kč"}}]
[null,"Faktura 3-456-1 data 6","3-456-1",6,6,{"v":6,"d":"6.00 Kč"},{"v":6,"d":"6.00 Kč"},{"$f":"(PodrobnostiFaktur[[#This Row],[Množ.]]*PodrobnostiFaktur[[#This Row],[Jednotková cena]])-PodrobnostiFaktur[[#This Row],[Sleva]]","v":{"v":30,"d":"30.00 Kč"}}]
[null,"Faktura 3-456-1 data 7","3-456-1",7,7,{"v":7,"d":"7.00 Kč"},{"v":7,"d":"7.00 Kč"},{"$f":"(PodrobnostiFaktur[[#This Row],[Množ.]]*PodrobnostiFaktur[[#This Row],[Jednotková cena]])-PodrobnostiFaktur[[#This Row],[Sleva]]","v":{"v":42,"d":"42.00 Kč"}}]
[null,"Faktura 3-456-1 data 8","3-456-1",8,8,{"v":8,"d":"8.00 Kč"},{"v":8,"d":"8.00 Kč"},{"$f":"(PodrobnostiFaktur[[#This Row],[Množ.]]*PodrobnostiFaktur[[#This Row],[Jednotková cena]])-PodrobnostiFaktur[[#This Row],[Sleva]]","v":{"v":56,"d":"56.00 Kč"}}]
[null,"Faktura 3-456-1 data 9","3-456-1",9,9,{"v":9,"d":"9.00 Kč"},{"v":9,"d":"9.00 Kč"},{"$f":"(PodrobnostiFaktur[[#This Row],[Množ.]]*PodrobnostiFaktur[[#This Row],[Jednotková cena]])-PodrobnostiFaktur[[#This Row],[Sleva]]","v":{"v":72,"d":"72.00 Kč"}}]
[null,"Faktura 3-456-1 data 10","3-456-1",10,10,{"v":10,"d":"10.00 Kč"},{"v":10,"d":"10.00 Kč"},{"$f":"(PodrobnostiFaktur[[#This Row],[Množ.]]*PodrobnostiFaktur[[#This Row],[Jednotková cena]])-PodrobnostiFaktur[[#This Row],[Sleva]]","v":{"v":90,"d":"90.00 Kč"}}]
[null,"Faktura 3-456-1 data 11","3-456-1",11,11,{"v":11,"d":"11.00 Kč"},{"v":11,"d":"11.00 Kč"},{"$f":"(PodrobnostiFaktur[[#This Row],[Množ.]]*PodrobnostiFaktur[[#This Row],[Jednotková cena]])-PodrobnostiFaktur[[#This Row],[Sleva]]","v":{"v":110,"d":"110.00 Kč"}}]
[null,"Faktura 3-456-1 data 12","3-456-1",12,12,{"v":12,"d":"12.00 Kč"},{"v":12,"d":"12.00 Kč"},{"$f":"(PodrobnostiFaktur[[#This Row],[Množ.]]*PodrobnostiFaktur[[#This Row],[Jednotková cena]])-PodrobnostiFaktur[[#This Row],[Sleva]]","v":{"v":132,"d":"132.00 Kč"}}]
[null,"Faktura 3-456-1 data 13","3-456-1",13,13,{"v":13,"d":"13.00 Kč"},{"v":13,"d":"13.00 Kč"},{"$f":"(PodrobnostiFaktur[[#This Row],[Množ.]]*PodrobnostiFaktur[[#This Row],[Jednotková cena]])-PodrobnostiFaktur[[#This Row],[Sleva]]","v":{"v":156,"d":"156.00 Kč"}}]
[null,"Faktura 3-456-1 data 14","3-456-1",14,14,{"v":14,"d":"14.00 Kč"},{"v":14,"d":"14.00 Kč"},{"$f":"(PodrobnostiFaktur[[#This Row],[Množ.]]*PodrobnostiFaktur[[#This Row],[Jednotková cena]])-PodrobnostiFaktur[[#This Row],[Sleva]]","v":{"v":182,"d":"182.00 Kč"}}]
[null,"Faktura 3-456-1 data 15","3-456-1",15,15,{"v":15,"d":"15.00 Kč"},{"v":15,"d":"15.00 Kč"},{"$f":"(PodrobnostiFaktur[[#This Row],[Množ.]]*PodrobnostiFaktur[[#This Row],[Jednotková cena]])-PodrobnostiFaktur[[#This Row],[Sleva]]","v":{"v":210,"d":"210.00 Kč"}}]
[null,"Faktura 3-456-1 data 16","3-456-1",16,16,{"v":16,"d":"16.00 Kč"},{"v":16,"d":"16.00 Kč"},{"$f":"(PodrobnostiFaktur[[#This Row],[Množ.]]*PodrobnostiFaktur[[#This Row],[Jednotková cena]])-PodrobnostiFaktur[[#This Row],[Sleva]]","v":{"v":240,"d":"240.00 Kč"}}]
[null,"Faktura 3-456-1 data 17","3-456-1",17,17,{"v":17,"d":"17.00 Kč"},{"v":17,"d":"17.00 Kč"},{"$f":"(PodrobnostiFaktur[[#This Row],[Množ.]]*PodrobnostiFaktur[[#This Row],[Jednotková cena]])-PodrobnostiFaktur[[#This Row],[Sleva]]","v":{"v":272,"d":"272.00 Kč"}}]
[null,"Faktura 3-456-1 data 18","3-456-1",18,18,{"v":18,"d":"18.00 Kč"},{"v":18,"d":"18.00 Kč"},{"$f":"(PodrobnostiFaktur[[#This Row],[Množ.]]*PodrobnostiFaktur[[#This Row],[Jednotková cena]])-PodrobnostiFaktur[[#This Row],[Sleva]]","v":{"v":306,"d":"306.00 Kč"}}]
[null,"Faktura 3-456-1 data 19","3-456-1",19,19,{"v":19,"d":"19.00 Kč"},{"v":19,"d":"19.00 Kč"},{"$f":"(PodrobnostiFaktur[[#This Row],[Množ.]]*PodrobnostiFaktur[[#This Row],[Jednotková cena]])-PodrobnostiFaktur[[#This Row],[Sleva]]","v":{"v":342,"d":"342.00 Kč"}}]
[null,"Faktura 3-456-1 data 20","3-456-1",20,20,{"v":20,"d":"20.00 Kč"},{"v":20,"d":"20.00 Kč"},{"$f":"(PodrobnostiFaktur[[#This Row],[Množ.]]*PodrobnostiFaktur[[#This Row],[Jednotková cena]])-PodrobnostiFaktur[[#This Row],[Sleva]]","v":{"v":380,"d":"380.00 Kč"}}]
[null,"Faktura 3-456-1 data 21","3-456-1",21,21,{"v":21,"d":"21.00 Kč"},{"v":21,"d":"21.00 Kč"},{"$f":"(PodrobnostiFaktur[[#This Row],[Množ.]]*PodrobnostiFaktur[[#This Row],[Jednotková cena]])-PodrobnostiFaktur[[#This Row],[Sleva]]","v":{"v":420,"d":"420.00 Kč"}}]
[null,"Faktura 3-456-1 data 22","3-456-1",22,22,{"v":22,"d":"22.00 Kč"},{"v":22,"d":"22.00 Kč"},{"$f":"(PodrobnostiFaktur[[#This Row],[Množ.]]*PodrobnostiFaktur[[#This Row],[Jednotková cena]])-PodrobnostiFaktur[[#This Row],[Sleva]]","v":{"v":462,"d":"462.00 Kč"}}]
[null,"Faktura 3-456-1 data 23","3-456-1",23,23,{"v":23,"d":"23.00 Kč"},{"v":23,"d":"23.00 Kč"},{"$f":"(PodrobnostiFaktur[[#This Row],[Množ.]]*PodrobnostiFaktur[[#This Row],[Jednotková cena]])-PodrobnostiFaktur[[#This Row],[Sleva]]","v":{"v":506,"d":"506.00 Kč"}}]
[null,"Faktura 3-456-1 data 24","3-456-1",24,24,{"v":24,"d":"24.00 Kč"},{"v":24,"d":"24.00 Kč"},{"$f":"(PodrobnostiFaktur[[#This Row],[Množ.]]*PodrobnostiFaktur[[#This Row],[Jednotková cena]])-PodrobnostiFaktur[[#This Row],[Sleva]]","v":{"v":552,"d":"552.00 Kč"}}]
[null,"Faktura 3-456-1 data 25","3-456-1",25,25,{"v":25,"d":"25.00 Kč"},{"v":25,"d":"25.00 Kč"},{"$f":"(PodrobnostiFaktur[[#This Row],[Množ.]]*PodrobnostiFaktur[[#This Row],[Jednotková cena]])-PodrobnostiFaktur[[#This Row],[Sleva]]","v":{"v":600,"d":"600.00 Kč"}}]
[null,"Faktura 3-456-2 data 1","3-456-2","Z4567",39,{"v":5,"d":"5.00 Kč"},null,{"$f":"(PodrobnostiFaktur[[#This Row],[Množ.]]*PodrobnostiFaktur[[#This Row],[Jednotková cena]])-PodrobnostiFaktur[[#This Row],[Sleva]]","v":{"v":195,"d":"195.00 Kč"}}]
[null,"Faktura 3-456-2 data 2","3-456-2","Z4568",40,{"v":4,"d":"4.00 Kč"},{"v":5,"d":"5.00 Kč"},{"$f":"(PodrobnostiFaktur[[#This Row],[Množ.]]*PodrobnostiFaktur[[#This Row],[Jednotková cena]])-PodrobnostiFaktur[[#This Row],[Sleva]]","v":{"v":155,"d":"155.00 Kč"}}]
[null,"Faktura 3-456-2 data 3","3-456-2","Z4569",30,{"v":6,"d":"6.00 Kč"},{"v":7,"d":"7.00 Kč"},{"$f":"(PodrobnostiFaktur[[#This Row],[Množ.]]*PodrobnostiFaktur[[#This Row],[Jednotková cena]])-PodrobnostiFaktur[[#This Row],[Sleva]]","v":{"v":173,"d":"173.00 Kč"}}]
[null,"Faktura 3-456-2 data 4","3-456-2","Z4570",40,{"v":7,"d":"7.00 Kč"},null,{"$f":"(PodrobnostiFaktur[[#This Row],[Množ.]]*PodrobnostiFaktur[[#This Row],[Jednotková cena]])-PodrobnostiFaktur[[#This Row],[Sleva]]","v":{"v":280,"d":"280.00 Kč"}}]
[null,"Faktura 3-456-2 data 5","3-456-2","Z4571",10,{"v":4,"d":"4.00 Kč"},null,{"$f":"(PodrobnostiFaktur[[#This Row],[Množ.]]*PodrobnostiFaktur[[#This Row],[Jednotková cena]])-PodrobnostiFaktur[[#This Row],[Sleva]]","v":{"v":40,"d":"40.00 Kč"}}]
[null,"Faktura 3-456-2 data 6","3-456-2","Z4572",5,{"v":8,"d":"8.00 Kč"},null,{"$f":"(PodrobnostiFaktur[[#This Row],[Množ.]]*PodrobnostiFaktur[[#This Row],[Jednotková cena]])-PodrobnostiFaktur[[#This Row],[Sleva]]","v":{"v":40,"d":"40.00 Kč"}}]
[null,"Faktura 3-456-2 data 7","3-456-2","Z4573",70,{"v":6,"d":"6.00 Kč"},null,{"$f":"(PodrobnostiFaktur[[#This Row],[Množ.]]*PodrobnostiFaktur[[#This Row],[Jednotková cena]])-PodrobnostiFaktur[[#This Row],[Sleva]]","v":{"v":420,"d":"420.00 Kč"}}]
[null,"Faktura 3-456-2 data 8","3-456-2","Z4574",25,{"v":4,"d":"4.00 Kč"},null,{"$f":"(PodrobnostiFaktur[[#This Row],[Množ.]]*PodrobnostiFaktur[[#This Row],[Jednotková cena]])-PodrobnostiFaktur[[#This Row],[Sleva]]","v":{"v":100,"d":"100.00 Kč"}}]
[null,"Faktura 3-456-2 data 9","3-456-2","Z4575",5,{"v":7,"d":"7.00 Kč"},{"v":3,"d":"3.00 Kč"},{"$f":"(PodrobnostiFaktur[[#This Row],[Množ.]]*PodrobnostiFaktur[[#This Row],[Jednotková cena]])-PodrobnostiFaktur[[#This Row],[Sleva]]","v":{"v":32,"d":"32.00 Kč"}}]
[null,"Faktura 3-456-2 data 10","3-456-2","Z4576",80,{"v":1,"d":"1.00 Kč"},null,{"$f":"(PodrobnostiFaktur[[#This Row],[Množ.]]*PodrobnostiFaktur[[#This Row],[Jednotková cena]])-PodrobnostiFaktur[[#This Row],[Sleva]]","v":{"v":80,"d":"80.00 Kč"}}]
[null,"Faktura 3-456-2 data 11","3-456-2","Z4577",65,{"v":7,"d":"7.00 Kč"},null,{"$f":"(PodrobnostiFaktur[[#This Row],[Množ.]]*PodrobnostiFaktur[[#This Row],[Jednotková cena]])-PodrobnostiFaktur[[#This Row],[Sleva]]","v":{"v":455,"d":"455.00 Kč"}}]
[null,"Faktura 3-456-2 data 12","3-456-2","Z4578",44,{"v":1,"d":"1.00 Kč"},null,{"$f":"(PodrobnostiFaktur[[#This Row],[Množ.]]*PodrobnostiFaktur[[#This Row],[Jednotková cena]])-PodrobnostiFaktur[[#This Row],[Sleva]]","v":{"v":44,"d":"44.00 Kč"}}]

{"sheet":"O šabloně pro sledování faktur","index":4,"n_rows":40,"n_cols":3,"rows_kept":40,"merged":[[3,1,3,7],[4,1,4,7],[5,1,5,7],[6,1,6,7],[7,2,7,7],[8,2,8,7],[9,2,9,7],[10,2,10,7],[11,2,11,7],[12,1,12,7],[13,2,13,3],[14,2,14,7],[15,1,15,7],[16,2,16,7],[17,2,17,7],[18,2,18,7],[19,2,19,7],[20,2,20,7],[21,2,21,7],[22,1,22,7],[23,1,23,7],[24,2,24,7],[25,2,25,7],[26,2,26,7],[27,2,27,7],[28,1,28,7],[29,1,29,7],[30,2,30,7],[31,2,31,7],[32,2,32,7],[33,2,33,7],[34,2,34,7],[36,2,36,7],[37,2,37,7],[38,2,38,7],[39,2,39,7]]}
[null,"O šabloně pro sledování faktur"]
[]
[]
[null,"Tato šablona je navržená tak, aby uchovávala historii zákazníků, faktur a podrobností faktur, abyste tak mohli ukládat víc faktur bez vytváření nových souborů. V této šabloně pro sledování faktur můžete také analyzovat dříve fakturovaná data. Můžete si třeba zobrazit všechny faktury týkající se jednoho zákazníka či konkrétního projektu nebo si zobrazit všechny faktury za minulý měsíc, poslední rok a mnoho dalšího."]
[null,"Než začnete, podívejte se na ukázková data. Na listu Faktura vyberte buňku vpravo od položky Faktura č. (buňka G4). Zobrazí se rozevírací seznam. Klikněte na šipku rozevíracího seznamu a vyberte ukázkovou fakturu. Všimněte si, jak se všechny informace na faktuře automaticky změní podle vybrané faktury. Teď se podívejte na listy Zákazníci, Faktury – hlavní a Podrobnosti faktury. Všechny tyto listy poskytují informace o faktuře a všechny změny, které uděláte, se aktualizují automaticky. "]
[null,"Jak mám začít?"]
[null,"Pomocí následujícího postupu upravte list Faktura tak, aby odrážel informace o vaší společnosti:"]
[null,"1.","Přejděte na list Faktura a na kartě Revize ve skupině Chránit vyberte Odemknout list. "]
[null,null,"Poznámka: List Faktura je zamčený proto, aby nedošlo k neúmyslným změnám. Jak už jsme zmínili, většina dat na tomto listu totiž pochází z ostatních listů v sešitu. "]
[null,"2.","Záhlaví faktury přizpůsobíte tak, že zadáte název vaší společnosti, ulici, město, PSČ, e-mailovou adresu, web atd. V dolní části faktury (řádek 43) upravte pokyny týkající se platby. "]
[null,null,"Pozor! Neupravujte informace o fakturaci nebo faktuře. Všechny tyto buňky obsahují vzorce, které automaticky aktualizují fakturu, jak je uvedeno v části O šabloně pro sledování faktur.  "]
[null,"3.","(Nepovinné) Úprava barev v celém sešitu: Na kartě Rozložení stránky ve skupině Motivy vyberte možnost Barvy a vyberte jinou sadu barev z galerie. "]
[null,"Tip: Vytvořte si sadu vlastních barev motivů, které odpovídají vašemu firemnímu brandu! Na kartě Rozložení stránky ve skupině Motivy vyberte možnost Barvy a pak vyberte Přizpůsobit barvy. Další informace o vlastních sadách barev najdete v následujícím tématu: "]
[null,null,"Přizpůsobení motivu dokumentu"]
[null,"4.","Po provedení požadovaných změn se vraťte na list Faktura a na kartě Revize ve skupině změny vyberte Zamknout list a potom vyberte OK. Když je list faktury zamčený, můžete vybrat pouze buňku Faktura č. s rozevíracím seznamem."]
[null,"Jak vytvořím fakturu?"]
[null,"1.","Na listu Zákazníci zadejte informace o zákaznících jako název společnosti a adresu. Připomínáme, že číslo společnosti je velmi důležitý údaj, protože každé společnosti přiřazuje jedinečný identifikátor používaný skrze celou šablonu sledování faktur. Také je dobré vědět, že společnost stačí přidat pouze jednou. V případě pozdějších faktur pro stejnou společnost můžete tento krok přeskočit. "]
[null,null,"Poznámka: Pokud stejné číslo přiřadíte více než jedné společnosti nebo zadáte stejný název společnosti více než jednou, zadané položky zčervenají a upozorní vás tak na duplikaci. "]
[null,"2.","Na listu Faktury – hlavní zadejte nejdůležitější informace pro vaši fakturu jako číslo faktury, datum vystavení faktury a popis projektu. Stejně jako číslo společnosti je i číslo faktury velmi důležitý údaj, protože každé faktuře přiřazuje jedinečný identifikátor používaný skrze celou šablonu sledování faktur. Dalším důležitým údajem je Společnost. Když vyberete společnost z rozevírací nabídky, přidruží vaši fakturu k této firmě. Když pak na listu Faktura vyberete číslo faktury, informace o této společnosti jako je název společnosti a adresa se automaticky vyplní."]
[null,null,"Poznámka: Pokud stejné číslo přiřadíte více než jedné faktuře, zadané položky zčervenají a upozorní vás tak na duplikaci. "]
[null,"3.","Na listu Podrobnosti faktury zadejte podrobnosti jako popis položky, číslo položky, množství a jednotkovou cenu. V rozevíracím seznamu Č. faktury. je k dispozici seznam faktur, které jste zadali na list Faktury – hlavní. To vám usnadní zadávání dat. Podobně jako u čísla společnosti v předchozím kroku přidruží i číslo faktury položku podrobností ke konkrétní faktuře. Když na listu Faktura vyberete z rozevíracího seznamu faktur číslo faktury, zobrazí se související položky podrobností pro tuto fakturu."]
[null,null,"Poznámka: K jedné faktuře můžete přidat maximálně 25 položek podrobností. Pokud přidáte víc než 25 položek, všechny odpovídající položky zčervenají, aby vás na limit upozornily. Pokud máte více než 25 fakturovaných položek, budete muset vytvořit druhou fakturu. "]
[null,"Jak přidám další zákazníky, faktury a podrobnosti faktur?"]
[null,"Data pro listy Zákazníci, Faktury a Podrobnosti faktur se ukládají v excelových tabulkách. Když do tabulky přidáte nový řádek, automaticky se naformátuje a všechny výpočty se zkopírují. Pokud chcete do tabulky přidat nové řádky, udělejte jednu z následujících věcí:"]
[null,"● ","Pokud tabulka nemá řádek Celkem, začněte psát pod ní. Jakmile stisknete Enter nebo Tabulátor, tabulka se automaticky rozšíří."]
[null,"● ","Umístěte ukazatel do poslední buňky nad řádek Celkem (v tabulce faktur třeba do buňky Poznámky u poslední faktury) a stiskněte Tab."]
[null,"● ","Na kartě Domů ve skupině Buňky vyberte Vložit a pak vyberte Vložit řádky tabulky nad nebo Vložit řádky tabulky pod. "]
[null,"● ","V pravém dolním rohu tabulky umístěte ukazatel myši na úchyt pro změnu velikosti tabulky a tažením dolů zvyšte počet dostupných řádků tabulky."]
[null,"Jak můžu analyzovat podrobnosti faktur?"]
[null,"Jak je uvedeno v části o šabloně pro sledování faktur, po zadání několika faktur můžete zobrazit seznam všech faktur pro konkrétního zákazníka, projekt, konkrétní časový interval a spoustu dalších věcí. Tento typ analýzy se provádí pomocí filtru, který umožňuje rychle zúžit seznam dat. Pokud chcete získat přístup k filtrům v tabulkách Zákazníci, Faktury nebo Podrobnosti faktury, vyberte šipku rozevíracího seznamu vedle jakéhokoliv názvu pole tabulky. Zobrazí se podokno filtrů, které vám nabídne řadu možností filtrování. Tady je pro začátek pár příkladů filtrování:"]
[null,"● ","Zobrazení celkové částky vyfakturované konkrétnímu zákazníkovi: Na listu Faktury – hlavní napravo od pole Číslo společnosti vyberte šipku rozevíracího seznamu. V podokně filtrů zrušte výběr všech společností kliknutím na Vybrat vše, vyberte požadovanou společnost a pak vyberte OK. "]
[null,null,"Tip: V podokně filtr můžete také zadat jméno zákazníka do pole Hledat a rychle tak prohledat dostupný seznam."]
[null,"● ","Zobrazení všech faktur konkrétního zákazníka a konkrétních projektů: Začněte filtrováním požadovaného zákazníka pomocí kroků uvedených v předchozím příkladu. Pak vpravo od položky Č. projektu vyberte šipku rozevíracího seznamu. V podokně filtrů vyberte požadovaný projekt nebo projekty a pak klikněte na OK. "]
[null,"● ","Zobrazení všech faktur za předchozí měsíc: Na listu Faktury – hlavní napravo od pole Datum vystavení vyberte šipku rozevíracího seznamu, přejděte na filtry data a vyberte poslední měsíc."]
[null,"● ","Zobrazení všech zákazníků se stejným směrovým číslem oblasti: Na listu Zákazníci napravo od pole Telefon vyberte šipku rozevíracího seznamu. V podokně filtrů klikněte do pole Hledat text, zadejte směrové číslo oblasti a klikněte na tlačítko OK. "]
[null,"Tipy pro filtrování"]
[null,"● ","Pokud tabulka obsahuje řádek souhrnů, například Zákazníci a Faktury, vypočítané součty budou odrážet jenom vámi filtrované seznamy."]
[null,"● ","K vyladění výsledků použijte víc filtrů na jednom poli nebo napříč více poli."]
[null,"● ","Pro vymazání jednoho filtru vyberte šipku rozevíracího seznamu už filtrovaného sloupce a pak vyberte Vymazat filtr z < název pole >."]
[null,"● ","Pokud chcete vymazat víc filtrů najednou, umístěte ukazatel na buňku v tabulce a na kartě Domů ve skupině Úpravy vyberte Seřadit a filtrovat a pak vyberte Vymazat."]